bitfinex/quotes_SOLUSD_20240829
["timestamp","ask_amount","ask_price","bid_price","bid_amount"]
[1724943624320,0.87548973,145.7,145.65,45.25098]
[1724943625319,0.87548973,145.72,145.65,45.25098]
[1724943625519,0.87548973,145.72,145.66,25.88270786]
[1724943625729,13.58626077,145.73,145.67,45.12549]
[1724943625929,13.58626077,145.73,145.67,45.25098]
[1724943626632,0.87548973,145.72,145.67,45.25098]
[1724943627440,15.6683,145.77,145.67,45.25098]
[1724943627650,0.87548973,145.76,145.69,16.0852]
[1724943627941,19.57207104,145.75,145.7,0.25098]
[1724943628146,0.87548973,145.74,145.7,0.25098]
[1724943629839,13.58626077,145.75,145.7,0.25098]
[1724943630550,13.58626077,145.75,145.7,1.62341542]
[1724943630926,0.87548973,145.74,145.7,1.62341542]
[1724943632047,13.58626077,145.75,145.7,46.62341542]
[1724943632435,13.58626077,145.75,145.7,45.25098]
[1724943632839,12.71077104,145.75,145.7,45.25098]
[1724943634070,0.87548973,145.74,145.7,0.25098]
[1724943637049,0.87548973,145.74,145.69,16.0852]
[1724943637050,12.71077104,145.73,145.69,16.0852]
[1724943637255,0.87548973,145.72,145.69,16.0852]
[1724943639465,0.87548973,145.72,145.68,0.12549]
[1724943639466,12.71077104,145.71,145.68,0.12549]
[1724943639759,12.71077104,145.71,145.67,0.25098]
[1724943640133,0.87548973,145.7,145.67,0.25098]
[1724943641533,0.87548973,145.7,145.65,16.5839]
[1724943641734,0.87548973,145.7,145.66,0.25098]
[1724943641933,7.73888973,145.7,145.66,0.12549]
[1724943642163,7.73888973,145.7,145.62,7.16435539]
[1724943642164,12.71077104,145.67,145.62,7.16435539]
[1724943642451,12.71077104,145.67,145.61,16.3508]
[1724943642452,0.87548973,145.66,145.61,24.94970549]
[1724943642651,0.87548973,145.66,145.63,5.88253081]
[1724943643057,19.57467104,145.69,145.63,5.88253081]
[1724943643260,0.87548973,145.71,145.63,5.88253081]
[1724943643552,20.44826077,145.73,145.64,12.71077104]
[1724943644143,20.44826077,145.73,145.65,45.25098]
[1724943644347,12.71077104,145.71,145.65,0.25098]
[1724943644543,0.87548973,145.7,145.65,0.25098]
[1724943644949,7.73898973,145.7,145.65,0.25098]
[1724943645146,0.87548973,145.7,145.65,0.25098]
[1724943645543,0.87548973,145.7,145.63,31.37288546]
[1724943645748,0.87548973,145.7,145.63,30.0]
[1724943645749,17.35818973,145.7,145.63,30.0]
[1724943645949,12.71077104,145.68,145.61,16.3508]
[1724943646143,0.87548973,145.67,145.61,16.3508]
[1724943646544,0.87548973,145.67,145.62,3.18311734]
[1724943646954,0.87548973,145.67,145.63,0.25098]
[1724943647338,0.87548973,145.67,145.62,20.25098]
[1724943656462,0.87548973,145.68,145.62,20.25098]
[1724943657269,13.58626077,145.71,145.63,45.0]
[1724943657567,7.73888973,145.7,145.64,0.25098]
[1724943657764,0.87548973,145.7,145.64,0.25098]
[1724943657940,0.87548973,145.72,145.64,20.25098]
[1724943658143,0.87548973,145.72,145.65,45.0]
[1724943658338,0.87548973,145.72,145.66,20.25098]
[1724943658546,0.87548973,145.72,145.67,45.0]
[1724943658744,0.87548973,145.72,145.68,0.25098]
[1724943662666,12.71077104,145.71,145.68,0.12549]
[1724943662871,12.71077104,145.71,145.67,0.25098]
[1724943662872,0.87548973,145.7,145.67,0.25098]
[1724943664048,12.71077104,145.71,145.67,0.25098]
[1724943664250,0.87548973,145.7,145.67,0.25098]
[1724943664479,19.57277104,145.73,145.67,0.25098]
[1724943664648,0.87548973,145.72,145.67,0.25098]
[1724943667865,0.87548973,145.73,145.67,0.25098]
[1724943668050,0.87548973,145.73,145.67,45.25098]
[1724943668254,0.87548973,145.73,145.68,20.0]
[1724943668453,0.87548973,145.73,145.69,0.25098]
[1724943668956,19.57187104,145.75,145.69,0.25098]
[1724943668957,0.87548973,145.74,145.69,0.25098]
[1724943670779,0.87548973,145.74,145.69,45.25098]
[1724943671373,13.58626077,145.75,145.69,45.25098]
[1724943672760,13.58626077,145.75,145.69,0.25098]
[1724943673370,0.87548973,145.75,145.7,0.12549]
[1724943673562,12.71077104,145.74,145.69,20.0]
[1724943673763,0.87548973,145.73,145.7,0.25098]
[1724943675467,12.71077104,145.72,145.67,20.0]
[1724943675664,0.87548973,145.71,145.67,20.0]
[1724943676879,0.87548973,145.71,145.68,0.12549]
[1724943677285,0.87548973,145.71,145.66,16.2073]
[1724943677466,0.87548973,145.71,145.67,0.25098]
[1724943679684,0.87548973,145.7,145.66,16.2073]
[1724943680191,7.73898973,145.7,145.66,16.2073]
[1724943680495,20.44976077,145.7,145.65,0.12549]
[1724943680877,0.87548973,145.69,145.62,21.8164]
[1724943681071,19.57507104,145.68,145.62,21.8164]
[1724943681270,0.87548973,145.67,145.62,21.8164]
[1724943682776,0.87548973,145.67,145.63,0.25098]
[1724943683372,7.74038973,145.67,145.59,22.4480993]
[1724943683578,19.57607104,145.66,145.6,30.0]
[1724943683880,0.87548973,145.65,145.6,30.0]
[1724943685572,0.87548973,145.64,145.59,15.2871]
[1724943685784,6.8667,145.63,145.55,15.9582]
[1724943685985,13.58626077,145.64,145.55,35.82578634]
[1724943685986,0.87548973,145.62,145.55,35.82578634]
[1724943686780,14.02658973,145.66,145.55,35.82578634]
[1724943687091,6.8659,145.65,145.56,20.0]
[1724943687289,0.87548973,145.64,145.57,12.83626104]
[1724943687467,0.87548973,145.64,145.58,45.12549]
[1724943687669,0.87548973,145.66,145.59,0.12549]
[1724943687882,7.74078973,145.66,145.59,0.12549]
[1724943688973,0.87548973,145.66,145.59,20.12549]
[1724943689220,0.87548973,145.66,145.6,0.12549]
[1724943689373,7.74118973,145.66,145.6,0.12549]
[1724943690073,0.87548973,145.66,145.6,0.12549]
[1724943690476,0.87548973,145.66,145.6,45.12549]
[1724943690675,0.87548973,145.66,145.61,0.12549]
[1724943691399,7.74078973,145.66,145.61,0.12549]
[1724943692277,0.87548973,145.66,145.61,0.12549]
[1724943693489,0.87548973,145.67,145.61,0.12549]
[1724943694679,7.73978973,145.68,145.61,0.12549]
[1724943694885,0.87548973,145.67,145.61,0.12549]
[1724943697176,7.74038973,145.67,145.61,0.12549]
[1724943697592,6.8654,145.66,145.6,0.25098]
[1724943697788,7.05578973,145.7,145.61,12.96175104]
[1724943697997,7.05578973,145.7,145.62,65.0]
[1724943698298,7.05578973,145.7,145.63,0.25098]
[1724943699285,7.05578973,145.7,145.63,1.62390769]
[1724943700599,0.87548973,145.7,145.63,1.62390769]
[1724943704008,0.87548973,145.7,145.63,0.25098]
[1724943707290,7.73888973,145.7,145.63,0.25098]
[1724943707490,20.44966077,145.7,145.63,0.25098]
[1724943710705,20.44966077,145.7,145.63,45.25098]
[1724943710917,20.44966077,145.7,145.64,20.0]
[1724943711210,20.44966077,145.7,145.65,0.25098]
[1724943711987,6.8639,145.69,145.65,0.25098]
[1724943712191,0.87548973,145.68,145.65,0.25098]
[1724943714507,13.58626077,145.7,145.65,0.25098]
[1724943714716,0.87548973,145.7,145.65,45.25098]
[1724943715987,0.87548973,145.7,145.66,16.6216]
[1724943716188,6.8632,145.71,145.67,0.25098]
[1724943717315,0.87548973,145.7,145.67,0.25098]
[1724943718289,0.87548973,145.7,145.67,0.12549]
[1724943719416,0.87548973,145.7,145.67,0.25098]
[1724943723520,0.87548973,145.7,145.67,0.12549]
[1724943730103,7.73758973,145.73,145.67,0.12549]
[1724943730430,20.44836077,145.73,145.67,0.25098]
[1724943730836,6.8624,145.72,145.67,0.25098]
[1724943731014,0.87548973,145.71,145.67,0.25098]
[1724943733822,0.87548973,145.72,145.67,0.25098]
[1724943734036,6.182,145.77,145.67,0.25098]
[1724943734352,0.87548973,145.76,145.67,65.25098]
[1724943735126,0.87548973,145.76,145.67,95.25098]
[1724943735315,0.87548973,145.76,145.68,12.71077104]
[1724943735529,0.87548973,145.77,145.69,65.25098]
[1724943735732,12.71077104,145.76,145.69,65.25098]
[1724943735939,0.87548973,145.75,145.69,65.25098]
[1724943739318,0.87548973,145.75,145.7,5.86431086]
[1724943739627,0.87548973,145.75,145.71,0.25098]
[1724943740621,0.87548973,145.75,145.7,0.25098]
[1724943742618,0.87548973,145.76,145.71,15.6091]
[1724943742814,0.87548973,145.76,145.72,0.25098]
[1724943743651,0.87548973,145.77,145.72,0.25098]
[1724943745544,0.87548973,145.77,145.72,0.94675221]
[1724943746634,0.87548973,145.77,145.72,0.25098]
[1724943748522,0.87548973,145.77,145.72,1.03619742]
[1724943749541,0.87548973,145.78,145.72,1.03619742]
[1724943751152,0.87548973,145.78,145.72,46.03619742]
[1724943751643,0.87548973,145.78,145.72,45.25098]
[1724943754251,0.87548973,145.8,145.74,12.71077104]
[1724943754446,0.87548973,145.82,145.75,20.25098]
[1724943754649,0.87548973,145.82,145.76,15.5694]
[1724943754857,0.87548973,145.82,145.77,0.25098]
[1724943756639,0.87548973,145.84,145.77,0.25098]
[1724943756842,0.87548973,145.84,145.77,45.25098]
[1724943757050,0.87548973,145.85,145.77,45.25098]
[1724943757434,0.87548973,145.85,145.78,54.65737104]
[1724943757640,0.87548973,145.85,145.79,45.25098]
[1724943758031,0.87548973,145.87,145.8,32.71077104]
[1724943758351,0.87548973,145.87,145.81,45.25098]
[1724943758534,0.87548973,145.89,145.81,45.25098]
[1724943758934,0.87548973,145.89,145.82,12.71077104]
[1724943759135,13.58626077,145.92,145.84,12.71077104]
[1724943759347,13.58626077,145.92,145.85,0.25098]
[1724943759538,13.58626077,145.92,145.85,1.62200342]
[1724943762134,13.58626077,145.92,145.85,0.25098]
[1724943762340,12.71077104,145.88,145.83,15.2468]
[1724943762562,0.87548973,145.87,145.83,15.2468]
[1724943763734,0.87548973,145.87,145.84,0.25098]
[1724943766458,19.56487104,145.9,145.84,0.25098]
[1724943766640,0.87548973,145.89,145.84,0.25098]
[1724943767848,0.87548973,145.9,145.84,0.25098]
[1724943771455,0.87548973,145.9,145.84,45.25098]
[1724943772769,0.87548973,145.9,145.84,51.76938]
[1724943777162,0.87548973,145.91,145.84,51.76938]
[1724943777475,0.87548973,145.91,145.85,20.0]
[1724943777673,20.43886077,145.93,145.86,45.12549]
[1724943777862,0.87548973,145.92,145.87,0.12549]
[1724943779676,0.87548973,145.92,145.86,0.25098]
[1724943780270,0.87548973,145.92,145.86,45.25098]
[1724943781266,13.58626077,145.93,145.87,15.3333]
[1724943781460,0.87548973,145.92,145.88,0.25098]
[1724943783756,0.87548973,145.93,145.88,45.25098]
[1724943784663,0.87548973,145.94,145.88,45.25098]
[1724943785488,20.43836077,145.94,145.88,45.25098]
[1724943785666,12.71077104,145.92,145.88,0.25098]
[1724943785981,20.43846077,145.94,145.88,0.25098]
[1724943786181,13.58626077,145.94,145.88,45.25098]
[1724943786380,0.87548973,145.95,145.89,6.2535]
[1724943786569,0.87548973,145.95,145.9,45.25098]
[1724943786772,0.87548973,145.97,145.9,45.25098]
[1724943787165,7.72628973,145.97,145.9,45.25098]
[1724943789167,0.87548973,145.97,145.9,45.25098]
[1724943789366,0.87548973,145.97,145.91,37.74760791]
[1724943789580,0.87548973,145.99,145.92,45.25098]
[1724943789766,0.87548973,145.98,145.92,45.25098]
[1724943790676,0.87548973,145.99,145.92,45.25098]
[1724943790877,0.87548973,145.98,145.92,45.25098]
[1724943791967,0.87548973,145.99,145.92,45.25098]
[1724943792168,0.87548973,145.98,145.92,45.25098]
[1724943792585,0.87548973,145.99,145.92,45.25098]
[1724943795592,0.87548973,145.99,145.93,6.1392]
[1724943795791,0.87548973,145.99,145.94,45.25098]
[1724943796297,0.87548973,146.0,145.94,45.25098]
[1724943797087,0.87548973,146.0,145.95,15.9078]
[1724943797295,0.87548973,146.02,145.96,0.25098]
[1724943798197,0.87548973,146.02,145.96,45.25098]
[1724943798979,13.58626077,146.01,145.96,0.25098]
[1724943799284,20.43506077,146.01,145.96,0.25098]
[1724943799482,20.43506077,146.01,145.96,0.12549]
[1724943800101,0.87548973,146.0,145.96,0.12549]
[1724943800586,0.87548973,146.0,145.96,1.49561984]
[1724943800896,0.87548973,146.0,145.97,0.12549]
[1724943801082,0.87548973,146.0,145.96,45.25098]
[1724943801285,13.58626077,146.01,145.96,45.25098]
[1724943801598,19.55877104,146.03,145.96,45.25098]
[1724943801898,0.87548973,146.02,145.96,45.25098]
[1724943803083,0.87548973,146.01,145.96,0.25098]
[1724943803284,13.58626077,146.01,145.96,0.25098]
[1724943803579,0.87548973,146.01,145.96,0.25098]
[1724943803788,0.87548973,146.01,145.96,45.25098]
[1724943804197,0.87548973,146.02,145.96,45.25098]
[1724943804500,7.72388973,146.02,145.96,45.25098]
[1724943804701,0.87548973,146.01,145.96,45.25098]
[1724943805504,20.43516077,146.01,145.95,15.9078]
[1724943805678,0.87548973,146.0,145.95,15.9078]
[1724943806282,6.8484,146.02,145.95,15.9078]
[1724943806604,0.87548973,146.01,145.95,15.9078]
[1724943806899,0.87548973,146.01,145.96,45.25098]
[1724943807474,0.87548973,146.02,145.96,45.25098]
[1724943808586,0.87548973,146.01,145.96,0.25098]
[1724943808785,7.72428973,146.01,145.96,0.25098]
[1724943808987,0.87548973,146.01,145.96,45.25098]
[1724943810175,0.87548973,146.01,145.96,0.25098]
[1724943810577,0.87548973,146.01,145.96,45.25098]
[1724943810800,6.8493,146.0,145.96,0.25098]
[1724943811012,0.87548973,145.99,145.96,0.25098]
[1724943811183,0.87548973,146.0,145.96,0.25098]
[1724943811699,6.8484,146.02,145.96,46.62100308]
[1724943812005,0.87548973,146.01,145.96,46.62100308]
[1724943813201,0.87548973,146.02,145.96,46.62100308]
[1724943813407,0.87548973,146.02,145.96,45.25098]
[1724943817411,12.71077104,146.03,145.97,1.36929927]
[1724943817586,13.58626077,146.03,145.98,0.25098]
[1724943817786,13.58626077,146.03,145.99,0.25098]
[1724943818110,13.58626077,146.03,145.96,45.25098]
[1724943818703,20.43416077,146.03,145.96,45.25098]
[1724943819286,0.87548973,146.02,145.96,45.25098]
[1724943821104,0.87548973,146.03,145.96,45.25098]
[1724943822286,0.87548973,146.04,145.97,6.187]
[1724943822490,0.87548973,146.04,145.98,45.25098]
[1724943825990,7.72298973,146.04,145.98,45.25098]
[1724943826510,19.55867104,146.03,145.98,0.12549]
[1724943826728,0.87548973,146.02,145.98,0.12549]
[1724943827799,0.87548973,146.02,145.98,0.25098]
[1724943828797,13.58626077,146.03,145.98,0.25098]
[1724943829095,0.87548973,146.03,145.98,0.25098]
[1724943830019,7.72298973,146.04,145.98,0.25098]
[1724943831115,0.87548973,146.04,145.98,0.25098]
[1724943831312,0.87548973,146.04,145.98,45.25098]
[1724943832094,7.72298973,146.04,145.98,0.25098]
[1724943832518,0.87548973,146.04,145.98,45.25098]
[1724943833899,7.72298973,146.04,145.98,45.25098]
[1724943834212,12.71077104,146.03,145.99,16.0374]
[1724943834419,0.87548973,146.06,146.0,21.6206326]
[1724943834909,0.87548973,146.06,146.0,20.25098]
[1724943843813,6.8451,146.09,146.02,6.5745]
[1724943844108,6.8451,146.09,146.03,0.25098]
[1724943844109,0.87548973,146.08,146.03,0.25098]
[1724943844620,13.58626077,146.07,146.03,0.25098]
[1724943845909,0.87548973,146.06,146.03,0.25098]
[1724943847224,0.87548973,146.07,146.04,16.4929]
[1724943847414,0.87548973,146.08,146.05,0.25098]
[1724943848315,0.87548973,146.09,146.05,0.25098]
[1724943850207,0.87548973,146.1,146.05,0.25098]
[1724943851030,0.87548973,146.1,146.05,1.61998278]
[1724943851324,0.87548973,146.11,146.05,1.61998278]
[1724943851725,0.87548973,146.11,146.05,0.25098]
[1724943855237,0.87548973,146.11,146.05,0.75683857]
[1724943855914,0.87548973,146.11,146.05,0.25098]
[1724943856109,7.72028973,146.1,146.04,16.4929]
[1724943856316,19.55617104,146.09,146.04,16.4929]
[1724943856521,0.87548973,146.08,146.04,16.4929]
[1724943857724,12.71077104,146.05,146.0,15.36]
[1724943858036,0.87548973,146.04,146.0,15.36]
[1724943858336,0.87548973,146.07,146.01,1.03340167]
[1724943858524,12.71077104,146.08,146.0,15.36]
[1724943859036,0.87548973,146.07,146.01,1.03248383]
[1724943859220,0.87548973,146.07,146.02,1.36942002]
[1724943859423,0.87548973,146.07,146.03,0.12549]
[1724943859617,0.87548973,146.07,146.02,0.25098]
[1724943861616,6.8452,146.09,146.03,6.5791]
[1724943861617,0.87548973,146.08,146.03,6.5791]
[1724943861814,0.87548973,146.08,146.04,0.25098]
[1724943862714,0.87548973,146.09,146.04,45.25098]
[1724943863633,0.87548973,146.09,146.05,15.7756]
[1724943863837,0.87548973,146.09,146.06,0.25098]
[1724943864140,0.87548973,146.1,146.06,0.25098]
[1724943871344,0.87548973,146.1,146.06,1.62012668]
[1724943871544,12.71077104,146.09,146.05,15.7756]
[1724943871842,12.71077104,146.09,146.03,6.5791]
[1724943871843,0.87548973,146.08,146.03,6.5791]
[1724943872217,19.55497104,146.11,146.03,6.5791]
[1724943872431,0.87548973,146.1,146.04,1.24550736]
[1724943872640,0.87548973,146.1,146.05,1.22023518]
[1724943873329,0.87548973,146.1,146.06,0.12549]
[1724943873733,0.87548973,146.1,146.05,0.12549]
[1724943874926,0.87548973,146.1,146.05,1.33932971]
[1724943875546,7.72008973,146.1,146.05,0.12549]
[1724943875845,12.71077104,146.09,146.05,0.12549]
[1724943876045,0.87548973,146.08,146.05,0.12549]
[1724943877227,0.87548973,146.08,146.04,0.12549]
[1724943877741,0.87548973,146.08,146.04,0.25098]
[1724943880138,0.87548973,146.08,146.01,16.027]
[1724943880334,0.87548973,146.08,146.02,20.12549]
[1724943882250,19.55557104,146.1,146.03,46.49487313]
[1724943882439,0.87548973,146.09,146.04,0.12549]
[1724943882756,0.87548973,146.09,146.04,1.4946856]
[1724943883045,0.87548973,146.09,146.04,0.12549]
[1724943884219,0.87548973,146.09,146.04,1.49473183]
[1724943884422,0.87548973,146.09,146.04,0.12549]
[1724943884621,0.87548973,146.09,146.04,21.49463581]
[1724943884846,0.87548973,146.09,146.05,0.12549]
[1724943886140,13.58626077,146.1,146.05,0.66182816]
[1724943886348,13.58626077,146.1,146.06,0.12549]
[1724943887023,0.87548973,146.09,146.06,0.12549]
[1724943887218,0.87548973,146.09,146.05,0.12549]
[1724943887724,0.87548973,146.09,146.04,0.25098]
[1724943888025,19.55627104,146.08,146.02,20.0]
[1724943888232,0.87548973,146.07,146.02,20.0]
[1724943889724,13.58626077,146.08,146.03,0.25098]
[1724943889924,0.87548973,146.08,146.03,0.25098]
[1724943890144,0.87548973,146.09,146.03,45.25098]
[1724943890542,0.87548973,146.09,146.04,1.36927107]
[1724943891352,0.87548973,146.1,146.05,0.25098]
[1724943892026,0.87548973,146.1,146.05,45.25098]
[1724943892234,0.87548973,146.1,146.06,3.13942983]
[1724943892432,0.87548973,146.1,146.05,45.25098]
[1724943892630,0.87548973,146.1,146.06,3.13942759]
[1724943893031,0.87548973,146.1,146.07,3.13887031]
[1724943893231,0.87548973,146.1,146.05,45.25098]
[1724943893451,0.87548973,146.11,146.05,45.25098]
[1724943895155,0.87548973,146.11,146.06,20.0]
[1724943895337,0.87548973,146.12,146.07,0.25098]
[1724943895926,7.71918973,146.12,146.06,20.0]
[1724943896337,0.87548973,146.12,146.07,0.25098]
[1724943898349,0.87548973,146.13,146.07,46.52630152]
[1724943898952,0.87548973,146.13,146.07,45.25098]
[1724943900228,0.87548973,146.13,146.07,0.25098]
[1724943900650,0.87548973,146.13,146.06,46.61996341]
[1724943900846,0.87548973,146.13,146.07,20.0]
[1724943901046,0.87548973,146.13,146.08,45.25098]
[1724943901454,22.47178973,146.14,146.08,45.25098]
[1724943904644,0.87548973,146.15,146.09,1.36876985]
[1724943904845,0.87548973,146.15,146.1,0.25098]
[1724943905065,0.87548973,146.16,146.11,1.36865248]
[1724943905364,21.4821,146.18,146.12,0.25098]
[1724943905571,22.35758973,146.18,146.12,0.25098]
[1724943905774,22.35758973,146.18,146.12,0.12549]
[1724943905775,0.87548973,146.17,146.12,0.12549]
[1724943906060,0.87548973,146.17,146.11,45.25098]
[1724943906244,0.87548973,146.17,146.12,45.0]
[1724943906445,0.87548973,146.17,146.13,0.25098]
[1724943906656,0.87548973,146.17,146.11,0.25098]
[1724943907045,21.4821,146.18,146.11,0.25098]
[1724943907244,15.4462,146.18,146.11,0.25098]
[1724943907447,0.87548973,146.18,146.11,15.43388]
[1724943907770,0.87548973,146.19,146.12,45.0]
[1724943907935,0.87548973,146.19,146.13,0.25098]
[1724943908762,12.71077104,146.18,146.13,0.25098]
[1724943908970,0.87548973,146.17,146.13,0.12549]
[1724943909161,0.87548973,146.17,146.1,30.0]
[1724943909362,0.87548973,146.17,146.11,45.25098]
[1724943910258,13.58626077,146.19,146.11,45.25098]
[1724943910661,12.71077104,146.17,146.11,45.25098]
[1724943910969,0.87548973,146.16,146.11,45.25098]
[1724943911262,13.58626077,146.17,146.11,45.25098]
[1724943912363,13.58626077,146.17,146.11,0.25098]
[1724943914346,13.58626077,146.17,146.11,30.25098]
[1724943914547,13.58626077,146.17,146.11,0.25098]
[1724943917067,13.58626077,146.17,146.11,1.61954036]
[1724943917366,13.58626077,146.17,146.11,0.25098]
[1724943917568,12.71077104,146.17,146.11,0.25098]
[1724943918655,0.87548973,146.18,146.11,0.25098]
[1724943918969,13.58626077,146.18,146.11,0.25098]
[1724943919956,20.42726077,146.18,146.11,0.25098]
[1724943920758,13.58626077,146.18,146.11,0.25098]
[1724943922354,13.58626077,146.18,146.11,30.25098]
[1724943922564,13.58626077,146.18,146.12,45.0]
[1724943922769,13.58626077,146.18,146.13,0.25098]
[1724943923369,11.58626077,146.18,146.13,0.25098]
[1724943924561,6.8399,146.2,146.13,0.25098]
[1724943924757,12.71077104,146.19,146.13,0.25098]
[1724943925283,19.55127104,146.19,146.13,0.25098]
[1724943925661,12.71077104,146.17,146.13,0.25098]
[1724943925981,12.71077104,146.17,146.12,15.5337]
[1724943927075,12.71077104,146.15,146.11,30.0]
[1724943927381,12.71077104,146.12,146.11,30.0]
[1724943927883,12.71077104,146.14,146.11,30.0]
[1724943928086,12.71077104,146.14,146.08,15.2025]
[1724943929064,6.8414,146.17,146.09,1.36879525]
[1724943929376,12.71077104,146.16,146.1,0.25098]
[1724943930364,12.71077104,146.12,146.08,7.07490564]
[1724943930568,12.71077104,146.1,146.04,21.5638]
[1724943930772,12.71077104,146.1,146.05,30.0]
[1724943931358,12.71077104,146.11,146.05,30.0]
[1724943931565,12.71077104,146.11,146.04,15.0025]
[1724943932082,12.71077104,146.11,146.05,20.0]
[1724943932263,12.71077104,146.09,146.02,7.07712531]
[1724943933590,12.71077104,146.09,146.03,66.6202727]
[1724943933955,12.71077104,146.09,146.03,65.25098]
[1724943935068,12.71077104,146.09,146.04,1.36928942]
[1724943936163,12.71077104,146.09,146.05,0.25098]
[1724943936912,12.71077104,146.09,146.04,0.25098]
[1724943938072,12.71077104,146.11,146.04,0.25098]
[1724943938572,12.71077104,146.12,146.04,0.25098]
[1724943939384,12.71077104,146.12,146.04,0.67383744]
[1724943939682,12.71077104,146.14,146.04,28.31165104]
[1724943939860,12.71077104,146.14,146.05,66.36879313]
[1724943940061,12.71077104,146.14,146.06,0.25098]
[1724943940484,12.71077104,146.14,146.06,30.25098]
[1724943940677,12.71077104,146.14,146.07,66.36880449]
[1724943940875,12.71077104,146.14,146.08,1.6197905]
[1724943941066,12.71077104,146.14,146.09,1.36881402]
[1724943941587,12.71077104,146.14,146.08,0.25098]
[1724943942488,12.71077104,146.14,146.08,1.61968685]
[1724943942660,12.71077104,146.16,146.08,1.61968685]
[1724943942983,12.71077104,146.18,146.09,16.1785]
[1724943943170,16.0281,146.22,146.1,77.96175104]
[1724943943375,12.71077104,146.21,146.12,12.71077104]
[1724943943770,12.71077104,146.19,146.13,45.25098]
[1724943943976,12.71077104,146.19,146.13,0.25098]
[1724943943977,12.71077104,146.17,146.13,0.25098]
[1724943944282,16.0281,146.22,146.1,20.0]
[1724943944283,12.71077104,146.15,146.1,20.0]
[1724943944486,12.71077104,146.15,146.11,0.25098]
[1724943945593,12.71077104,146.13,146.07,6.4219]
[1724943945776,12.71077104,146.13,146.05,15.7841]
[1724943946980,12.71077104,146.13,146.06,20.0]
[1724943947572,12.71077104,146.13,146.07,0.12549]
[1724943948275,12.71077104,146.13,146.07,45.25098]
[1724943950173,12.71077104,146.13,146.08,1.36889645]
[1724943950890,15.5725,146.17,146.07,45.25098]
[1724943951095,12.71077104,146.14,146.07,45.25098]
[1724943952200,12.71077104,146.14,146.08,5.79663592]
[1724943952385,12.71077104,146.14,146.09,45.25098]
[1724943952588,12.71077104,146.14,146.1,0.43094015]
[1724943952892,12.71077104,146.14,146.09,45.25098]
[1724943953289,12.71077104,146.12,146.06,20.0]
[1724943953488,12.71077104,146.12,146.07,45.25098]
[1724943954079,12.71077104,146.12,146.08,1.2173803]
[1724943954284,12.71077104,146.14,146.09,0.25098]
[1724943954898,12.71077104,146.14,146.1,0.12549]
[1724943955203,12.71077104,146.14,146.09,45.0]
[1724943955403,12.71077104,146.14,146.1,0.25098]
[1724943956071,12.71077104,146.14,146.1,1.61972312]
[1724943956477,12.71077104,146.15,146.1,1.61972412]
[1724943956678,12.71077104,146.15,146.1,0.25098]
[1724943958786,12.71077104,146.15,146.1,1.42628485]
[1724943959801,12.71077104,146.15,146.1,0.25098]
[1724943960889,15.5725,146.17,146.1,0.25098]
[1724943961089,12.71077104,146.15,146.1,0.25098]
[1724943961789,15.5725,146.17,146.1,0.25098]
[1724943961988,12.71077104,146.15,146.1,0.25098]
[1724943962190,15.5725,146.17,146.1,0.25098]
[1724943962393,6.6438,146.18,146.1,1.61942786]
[1724943962584,15.6276,146.2,146.1,16.84468]
[1724943962793,28.33837104,146.2,146.11,59.07908362]
[1724943963100,12.71077104,146.18,146.12,0.25098]
[1724943963506,22.4676,146.2,146.12,0.25098]
[1724943963805,12.71077104,146.18,146.12,0.25098]
[1724943966003,22.4676,146.2,146.12,0.25098]
[1724943966200,12.71077104,146.19,146.12,0.25098]
[1724943967797,12.71077104,146.19,146.12,1.61926326]
[1724943968004,12.71077104,146.19,146.12,0.25098]
[1724943968583,12.71077104,146.19,146.12,30.25098]
[1724943968897,12.71077104,146.19,146.13,45.0]
[1724943969111,12.71077104,146.19,146.14,0.25098]
[1724943970192,6.4918,146.22,146.14,0.25098]
[1724943970391,12.71077104,146.19,146.14,0.25098]
[1724943971109,15.6276,146.24,146.14,1.61914359]
[1724943971402,12.71077104,146.21,146.14,0.25098]
[1724943971699,12.71077104,146.21,146.14,30.25098]
[1724943971898,12.71077104,146.19,146.14,30.25098]
[1724943972107,12.71077104,146.19,146.14,30.12549]
[1724943972284,12.71077104,146.17,146.14,30.0]
[1724943972580,12.71077104,146.18,146.14,30.0]
[1724943972779,67.93978416,146.23,146.1,16.5937]
[1724943972780,12.71077104,146.16,146.1,16.5937]
[1724943975281,12.71077104,146.16,146.11,0.12549]